Cogmind - Beta 13 @@@ ROGUE MODE // 2024.04.05 @ 21:22:38 Player: Baxter Result: Self-destructed Performance ------------- Evolutions (2) 1000 Regions Visited (4) 800 Robots Destroyed (27) 135 Value Destroyed (466) 466 Prototype IDs (0) 0 Alien Tech Used (0) 0 Bonus (259) 259 TOTAL SCORE: 2660 Bonus ------- Follower Combat Kills 259 Cogmind --------- Core Integrity 550/550 Matter 292/300 Energy 275/275 System Corruption 1% Temperature Cool (0) Movement Treading (160) Location -8/Materials Parts ------- > --- POWER (1) -------- Deuterium Engine > --- PROPULSION (4) --- Light Treads Light Treads Light Treads Light Treads > --- UTILITY (4) ------ Large Storage Unit Seismic Detector Improved Light Armor Plating Improved Trap Extractor (0/6) > --- WEAPON (2) ------- Light Assault Rifle Light Assault Rifle > --- INVENTORY (15) --- Light Nuclear Core Light Treads Light Treads Light Treads Large Matter Pod (150) Compact Matter Pod (0) Light Assault Rifle Battle Cannon Grenade Launcher Rocket Launcher Heavy Missile Launcher Heavy Missile Launcher Heavy Missile Launcher Greatsword Peak State ------------ > --- POWER ------------ Deuterium Engine > --- PROPULSION ------- Light Treads Light Treads Light Treads Light Treads > --- UTILITY ---------- Large Storage Unit Seismic Detector Improved Light Armor Plating Improved Trap Extractor > --- WEAPON ----------- Light Assault Rifle Light Assault Rifle > --- INVENTORY -------- Light Nuclear Core Light Treads Light Treads Light Treads Large Matter Pod Light Assault Rifle Battle Cannon Grenade Launcher Rocket Launcher Heavy Missile Launcher Heavy Missile Launcher Heavy Missile Launcher Heavy Missile Launcher Mining Claw [Rating: 21] Favorites ----------- Power Deuterium Engine Engine Deuterium Engine Power Core Light Nuclear Core Propulsion Light Treads Treads Light Treads Utility Seismic Detector Device Seismic Detector Storage Large Storage Unit Protection Improved Light Armor Plating Weapon Light Assault Rifle Ballistic Gun Light Assault Rifle Launcher Grenade Launcher Slashing Weapon Mining Claw Build | -11 -10 -10 -10 -8 ------- Run | Yrd Mat Min Sub Mat Slots Evolved 4 | . . . . 4 Power . | . . . . . Propulsion 2 | . . . . 2 Utility 2 | . . . . 2 Weapon . | . . . . . Parts Attached 37 | 7 16 6 3 5 Power 6 | 1 3 2 . . Engine 5 | 1 3 1 . . Core 1 | . . 1 . . Reactor . | . . . . . Propulsion 11 | 2 5 1 . 3 Treads 11 | 2 5 1 . 3 Leg . | . . . . . Wheel . | . . . . . Hover . | . . . . . Flight . | . . . . . Utility 6 | 2 2 . . 2 Device 2 | 1 . . . 1 Storage 3 | 1 2 . . . Processor . | . . . . . Hackware . | . . . . . Protection 1 | . . . . 1 Artifact . | . . . . . Weapon 14 | 2 6 3 3 . Energy Gun . | . . . . . Energy Cannon . | . . . . . Ballistic Gun 11 | 2 4 3 2 . Ballistic Cannon . | . . . . . Launcher 1 | . 1 . . . Special Weapon . | . . . . . Impact Weapon . | . . . . . Slashing Weapon 2 | . 1 . 1 . Piercing Weapon . | . . . . . Special Melee Weapon . | . . . . . Unidentified Prototypes . | . . . . . Parts Lost 2 | . 1 1 . . Power 1 | . 1 . . . Propulsion . | . . . . . Utility . | . . . . . Weapon 1 | . . 1 . . Highest Loss Streak 1 | . 1 1 . . To Critical Strikes . | . . . . . Average Slot Usage (%) 98 | . 99 95 100 100 Engine 11 | . 13 9 14 9 Core 1 | . . 4 . . Treads 28 | . 28 27 28 36 Device 14 | . 14 14 14 18 Storage 13 | . 14 14 14 9 Ballistic Gun 24 | . 26 24 25 18 Naked Turns . | . . . . . Heaviest Build 38 | 12 30 32 33 38 Greatest Support 80 | 40 40 40 40 80 Greatest Overweight (x) 4 | 3 4 1 . . Average Overweight (x) . | . . . . . Largest Inventory Capacity 15 | 8 15 15 15 15 Average Capacity 13 | 7 9 15 15 15 Most Carried 15 | 6 12 15 14 15 Average Carried 11 | 4 8 13 13 13 Final Capacity 15 | 8 15 15 15 15 Final Carried 15 | 6 12 14 14 15 Class Distribution -------------------- 100% | Mutant Dominant Class ---------------- Mutant | -10/Materials Mutant | -10/Mines Mutant | -10/Subcaves Mutant | -8/Materials Resources | -11 -10 -10 -10 -8 ----------- Run | Yrd Mat Min Sub Mat Matter Collected 1064 | 272 403 258 65 66 Remotely . | . . . . . Salvage Created 823 | 116 479 107 10 111 Parts 59 | 6 37 7 3 6 Haulers Intercepted 3 | . 1 . . 2 Recyclers Shooed 4 | . 1 3 . . Parts Field Recycled . | . . . . . Retrieved Matter . | . . . . . Parts Self-Destructed 10 | . . . 10 . Prevented . | . . . . . Kills | -11 -10 -10 -10 -8 ------- Run | Yrd Mat Min Sub Mat Combat Hostiles Destroyed 16 | . 13 2 1 . Guns 13 | . 10 2 1 . AOE 3 | . 3 . . . Classes Destroyed 8 | 3 4 1 . . Worker 2 | 1 1 . . . Builder 1 | . . 1 . . Tunneler 1 | 1 . . . . Hauler 3 | . 1 . . 2 Recycler 2 | 1 1 . . . Watcher 2 | . 2 . . . Swarmer 7 | . 6 . 1 . Grunt 9 | . 7 2 . . Best Kill Streak 5 | 2 5 2 1 1 Combat Bots Only 3 | . 3 2 1 . Max Kills in Single Turn 2 | 1 2 1 1 1 Gunslinging . | . . . . . Exploded 1 | . 1 . . . Melee . | . . . . . Uniques/NPCs Destroyed . | . . . . . Combat | -11 -10 -10 -10 -8 -------- Run | Yrd Mat Min Sub Mat Hostile Shots Fired 94 | . 78 14 2 . Missed 28 | . 25 2 1 . Damage Taken 744 | . 543 183 18 . Core 125 | . 97 28 . . Absorbed by Shields . | . . . . . Core Remaining (%) 75 | 100 . . 50 . Volleys Fired 102 | 9 58 22 2 11 Largest 2 | 2 2 2 2 2 Hottest 40 | 40 40 40 40 40 Shots Fired 199 | 18 113 42 4 22 Gun 196 | 18 110 42 4 22 Cannon . | . . . . . Launcher 3 | . 3 . . . Special . | . . . . . Kinetic 196 | 18 110 42 4 22 Thermal . | . . . . . Explosive 3 | . 3 . . . Electromagnetic . | . . . . . Robot Hit Streak 17 | 5 11 9 4 17 Robot Miss Streak 5 | 1 5 2 . 4 Penetration Max . | . . . . . Secondary Targets 1 | . 1 . . . Max Gunslinging Chain 1 | . 1 . . . Shots Hit Robots 141 | 12 76 32 4 17 Core Hits 54 | 5 31 11 3 4 Critical Kills . | . . . . . Critical Parts Destroyed 1 | . . . . 1 Critical Strikes 1 | . . . . 1 Destroy 1 | . . . . 1 Melee Attacks 14 | . 1 . 13 . Impact . | . . . . . Slashing 14 | . 1 . 13 . Piercing . | . . . . . Sneak Attacks . | . . . . . Combat Hostiles . | . . . . . Follow-up Attacks . | . . . . . Damage Inflicted 1660 | 121 1099 281 27 132 Guns 1307 | 121 746 281 27 132 Cannons . | . . . . . Explosions 353 | . 353 . . . Melee . | . . . . . Ramming . | . . . . . Kinetic 1307 | 121 746 281 27 132 Thermal . | . . . . . Explosive 353 | . 353 . . . Electromagnetic . | . . . . . Impact . | . . . . . Slashing . | . . . . . Piercing . | . . . . . Highest Corruption 1 | . . . . 1 Average Corruption 1 | . . . . 1 Corruption Purged . | . . . . . Corruption Blocked . | . . . . . Effects 1 | . . . . 1 Message Errors 1 | . . . . 1 Overload Shots . | . . . . . Overflow Damage 36 | . 36 . . . Projectiles . | . . . . . Explosions 36 | . 36 . . . Melee . | . . . . . Knockbacks . | . . . . . Impact . | . . . . . Kinetic . | . . . . . Secondary . | . . . . . Self-Inflicted Damage . | . . . . . Shots . | . . . . . Rammed . | . . . . . Targets Rammed . | . . . . . Kicked . | . . . . . Crushed . | . . . . . Highest Temperature 18 | . 18 18 . . Average Temperature 7 | . 7 7 . . Received Heat Transfer 306 | . 213 93 . . Siege Activations . | . . . . . Robots Corrupted . | . . . . . Combat Hostiles . | . . . . . Parts Fried . | . . . . . Impact Corruptions . | . . . . . Robots Melted . | . . . . . Combat Hostiles . | . . . . . Parts Melted . | . . . . . Heat Transferred . | . . . . . Parts Sabotaged . | . . . . . Parts Stolen . | . . . . . Parts Stripped . | . . . . . Power Chain Reactions . | . . . . . Alert | -11 -10 -10 -10 -8 ------- Run | Yrd Mat Min Sub Mat Peak Influence 249 | 15 218 58 . 249 Initial 230 | . 9 . . 230 Average 69 | 3 117 19 . 234 Maximum Alert Level 1 | . 1 . . 1 Low Security (%) 91 | 100 98 100 . . Level 1 8 | . 1 . . 100 Level 2 . | . . . . . Level 3 . | . . . . . Level 4 . | . . . . . Level 5 . | . . . . . High Security . | . . . . . Max Security . | . . . . . Squads Dispatched 3 | . 3 . . . Investigation 3 | . 3 . . . Extermination . | . . . . . Reinforcement . | . . . . . Assault . | . . . . . Garrison . | . . . . . Intercept . | . . . . . Searches Triggered . | . . . . . Construction Impeded . | . . . . . Haulers Reinforced . | . . . . . Active Scanning Responses . | . . . . . Cargo Convoy Interrupts . | . . . . . Stealth | -11 -10 -10 -10 -8 --------- Run | Yrd Mat Min Sub Mat Distress Signals 3 | . 2 . . 1 Communications Jammed . | . . . . . Distress Signals . | . . . . . Times Spotted 39 | . 18 4 16 1 Peak Tracking Total 5 | . 4 2 5 2 Tactical Retreats 2 | . . . 2 . Traps | -11 -10 -10 -10 -8 ------- Run | Yrd Mat Min Sub Mat Traps Triggered 5 | . 2 2 . 1 Indirectly . | . . . . . Trap Hack Attempts . | . . . . . Triggered . | . . . . . Disarmed . | . . . . . Reprogrammed . | . . . . . Reused . | . . . . . Traps Extracted . | . . . . . Installed . | . . . . . Triggered . | . . . . . Machines | -11 -10 -10 -10 -8 ---------- Run | Yrd Mat Min Sub Mat Machines Disabled . | . . . . . Max in Single Turn . | . . . . . Machines Repaired . | . . . . . Machines Dismantled . | . . . . . Machines Sabotaged . | . . . . . Overloaded Fab Kills . | . . . . . Hacking | -11 -10 -10 -10 -8 --------- Run | Yrd Mat Min Sub Mat Machines Accessed 9 | . 7 1 . 1 Terminals 8 | . 7 . . 1 Fabricators . | . . . . . Repair Stations . | . . . . . Recycling Units . | . . . . . Scanalyzers . | . . . . . Garrison Access . | . . . . . Total Hacks 34 | . 29 1 . 4 Successful 17 | . 15 1 . 1 Failed 17 | . 14 . . 3 Catastrophic 2 | . 2 . . . Database Lockouts . | . . . . . Manual 23 | . 19 . . 4 Terminals 33 | . 29 . . 4 Fabricators . | . . . . . Repair Stations . | . . . . . Recycling Units . | . . . . . Scanalyzers . | . . . . . Garrison Access . | . . . . . Terminal Hacks 9 | . 8 1 . . Part Schematic 1 | . 1 . . . Robot Analysis 2 | . 2 . . . Open Door 1 | . . 1 . . Unreport Threat 1 | . 1 . . . Dispatch Records 1 | . 1 . . . Maintenance Status 1 | . 1 . . . Hauler Manifests 2 | . 2 . . . Fabricator Hacks . | . . . . . Repair Station Hacks . | . . . . . Recycling Unit Hacks . | . . . . . Scanalyzer . | . . . . . Garrison Access Hacks . | . . . . . Unauthorized Hacks 8 | . 7 . . 1 Terminals 8 | . 7 . . 1 Botnet 8 | . 7 . . 1 Fabricators . | . . . . . Repair Stations . | . . . . . Recycling Units . | . . . . . Scanalyzers . | . . . . . Garrison Access . | . . . . . Data Cores Recovered . | . . . . . Used . | . . . . . Hacking Detections 8 | . 7 . . 1 Full Trace Events 3 | . 3 . . . Feedback Events . | . . . . . Feedback Blocked . | . . . . . Robot Schematics Acquired . | . . . . . Robots Built . | . . . . . Authchips . | . . . . . Time . | . . . . . Total Robot Build Rating . | . . . . . Part Schematics Acquired 1 | . 1 . . . Parts Built . | . . . . . Authchips . | . . . . . Time . | . . . . . Total Part Build Rating . | . . . . . Parts Repaired . | . . . . . Time . | . . . . . Parts Recycled . | . . . . . Recycled Matter . | . . . . . Retrieved Matter . | . . . . . Retrieved Components . | . . . . . Parts Scanalyzed . | . . . . . Part Schematics Acquired . | . . . . . Parts Damaged . | . . . . . Bothacking | -11 -10 -10 -10 -8 ------------ Run | Yrd Mat Min Sub Mat Used RIF Installer . | . . . . . Robots Hacked . | . . . . . Non-combat . | . . . . . Combat . | . . . . . Robot Hacks Applied . | . . . . . Relay Couplers Released . | . . . . . Fabnet Peak Effective % . | . . . . . Robots Rewired . | . . . . . Allies Hacked . | . . . . . Hacks Repelled . | . . . . . Allies | -11 -10 -10 -10 -8 -------- Run | Yrd Mat Min Sub Mat Total Allies 3 | . . 3 . . Largest Group 3 | . . 3 3 1 Highest-Rated Group 40 | . . 40 40 8 Highest-Rated Ally 16 | . . 16 16 8 Total Orders 2 | . . 2 . . STAY 1 | . . 1 . . FOLLOW 1 | . . 1 . . Ally Attacks 62 | . . 25 37 . Total Damage 610 | . . 223 387 . Kills 11 | . . 2 9 . Allies Corrupted . | . . . . . Allies Melted . | . . . . . Intel | -11 -10 -10 -10 -8 ------- Run | Yrd Mat Min Sub Mat Robot Analysis Total 2 | . 2 . . . Derelict Logs Recovered 1 | . . 1 . . Drone Launches . | . . . . . Drone Recoveries . | . . . . . Exploration | -11 -10 -10 -10 -8 ------------- Run | Yrd Mat Min Sub Mat Turns Passed 3556 | 111 921 1456 842 226 Spaces Moved 1957 | 47 440 862 493 115 Core 20 | 19 1 . . . Treads 1937 | 28 439 862 493 115 Legs . | . . . . . Wheels . | . . . . . Hover . | . . . . . Flight . | . . . . . Fastest Speed 50 | 50 160 160 160 160 Average Speed 160 | 150 160 160 160 160 Slowest Speed 250 | 200 250 240 160 160 Overloaded Moves . | . . . . . Propulsion Burnouts . | . . . . . Robots Hopped . | . . . . . Cave-ins Triggered . | . . . . . Exploration Rate (%) 47 | 4 86 98 35 16 Regions Visited 4 Branch Regions 2 Pre-discovered Areas . | . . . . . Known Exits Taken 1 | . . 1 . . Unknown Exits Taken 3 | 1 1 . 1 . Scrap Searched 1 | . . 1 . . Spaces Dug 1 | . 1 . . . Terrain Destroyed 15 | . 15 . . . Melee 1 | . 1 . . . Projectile . | . . . . . AOE 14 | . 14 . . . Terrain Rammed . | . . . . . Walls Destroyed . | . . . . . Machines Disabled . | . . . . . Actions | -11 -10 -10 -10 -8 --------- Run | Yrd Mat Min Sub Mat Total 2183 | 68 557 902 516 140 Wait 25 | . 15 5 5 . Move 1953 | 46 439 861 492 115 Hop . | . . . . . Pick Up 30 | 6 13 4 1 6 Fast Attach 12 | 7 3 2 . . Attach 7 | . 1 1 1 4 Detach . | . . . . . Swap 18 | . 12 3 2 1 Drop 22 | . 15 4 . 3 Fire 102 | 9 58 22 2 11 Melee 14 | . 1 . 13 . Ram . | . . . . . Kick . | . . . . . Crush . | . . . . . Escape Stasis . | . . . . . Rewire . | . . . . . Trap . | . . . . . Miscellaneous . | . . . . . Route ------- -11/Scrapyard -10/Materials (discovered 3 exits: [*Mat x2] / *Min) -10/Mines (discovered 3 exits: [*Mat x2] / *Sub) -10/Subcaves (discovered 2 exits: *Mat / [*Rec]) -8/Materials (discovered 1 exit: [*Fac]) History --------- Turn | Location | Event 32 | -11/Scrapyard | Discovered new exit (range 16) 112 | -11/Scrapyard | Entered Materials 312 | -10/Materials | Build established: Mutant 626 | -10/Materials | Discovered new exit (range 8) 758 | -10/Materials | Discovered new exit (range 16) 938 | -10/Materials | Discovered new exit (range 14) 1033 | -10/Materials | Entered Mines 1253 | -10/Mines | Identified exit to Subcaves 1285 | -10/Mines | Discovered new exit (range 5) 1315 | -10/Mines | Received a Rocket Launcher from a helpful Derelict 1520 | -10/Mines | Assisted by bots powering up and referring to "LRC-V3" 1814 | -10/Mines | Discovered new exit (range 15) 2088 | -10/Mines | Met a Derelict who couldn't figure out how to use a Trap Extractor 2489 | -10/Mines | Entered Subcaves 2489 | -10/Subcaves | Accompanied by 3 allies 3287 | -10/Subcaves | Discovered new exit (range 12) 3289 | -10/Subcaves | Shifting Twisted Machinery released Battle Cannon 3309 | -10/Subcaves | Shifting Twisted Machinery released Riot Gun 3321 | -10/Subcaves | Discovered new exit (range 10) 3331 | -10/Subcaves | Entered Materials 3331 | -8/Materials | Accompanied by 1 ally 3331 | -8/Materials | Evolved 4 slots: Propulsion x2, Utility x2 3549 | -8/Materials | Discovered new exit (range 8) 3557 | -8/Materials | Self-destructed Last Messages --------------- 03510_ Current location identified: Materials >>Trojan(Botnet) Trojan loaded successfully. Testing... Terminal linked with 0 systems. Awaiting botnet instructions. 03512_ R-06 Scavenger collects Prototype Energy Gun. 03526_ A-02 Transporter suffers critical hit (Destroy). 03526_ Destroyed Ion Engine. 03526_ A-02 Transporter sends out distress signal. 03528_ A-02 Transporter destroyed. 03539_ K-01 Serf collects debris. 03542_ Acquired 66 matter. 03549_ EXIT=FOUND 03549_ K-01 Serf collects debris. 03553_ Mercenary 1a destroyed. 03555_ K-01 Serf cleans the Terminal. Map ----- +----------------------------------------------------+ | ???????????????????????????????? | | ???????????????????????????????? | | ???????????????????????????????? | | ???????????????????????????????? | | ???????????????????????????????? | | ???????????????????????????????? | | ???????????????????????????????? | | ???????????????????????????????? | | ???????????????????????????????? | | ???????????????????????????????? | | ????????? ???????????????????? | | ????????# ???????????????????? | | ????????# ???????????????????? | | ????????# ???????????????????? | | ????????+ ???????????????????? | | ????????# ???????????????????? | | ????????# ???????????????????? | | ????????? ???????????????????? | | ????????? < ???????????????????? | | ????????? ???????????????????? | | ########## #??????????#####????? | | # # #??????????#"""#????? | | #! """ #!############"T"###### | | # R" #!*%** | | # """*+%*** | | # @ #[== | | #""" ####+######+########### | | #""" ## # #??????? | | #""" !## # #??????? | | # ## # #??????? | | ########### ! # """ #??????? | | ??????????# # """ #??????? | | ??????????# # """ #??????? | | ??????????#! ! ########??????? | | ??????????# #?????????????? | | ??????????# #?????????????? | | ???????????#######?????????????? | | | | | | | | | | | | | | | | | | | | | | | | | | | +----------------------------------------------------+ Best States ------------- Heat Dissipation 31 Energy Generation 14 Energy Capacity 275 Matter Stores 300 Matter Capacity 300 Sight Range 16 Terrain Scan Density 10 Armor Coverage 150 Evasion (%) 50 Recoil Reduction 4 Trap Extractor Capacity 6 Item Schematics ----------------- Huge Storage Unit | -10/Materials | Hacked Robot Schematics ------------------ None Fabricated ------------ Nothing Alien Tech Used ----------------- None Achievements -------------- None Challenges ------------ None Game ------ Seed StructuralSchematicMultirail Manual? 0 Play Time 00:18:13 Cumulative 83.7 hours Start 2024.04.05 @ 21:04:49 End 2024.04.05 @ 21:22:38 Sessions 1 Manual Loads 0 Difficulty Rogue Special Mode None Game No. 85 Rogue 85 Adventurer 0 Explorer 0 Win Type - Total 1 Types 1/0/0/0/0/0/0/0/0 Lore% 38 Gallery% 48 Achievement% 37 Wizard Run 0 Options --------- Layout 1 ASCII 0 Keyboard 0 Movement Numpad Keybinds 0 Fullscreen 2 Font 24/X11 Map View 50x35 Zoom Use 0% Tactical HUD 1 Map Filters NONE Filters NONE Steam 0 RUN: 70419f37-7ec2-4b9e-8ecd-dc094037fdd0